fUST/lending_fUST_20250528
["ID","MTS","AMOUNT","RATE_DAILY","PERIOD"]
[362754307,1748429444653,-430.0,0.00021643,2]
[362754309,1748429444663,-430.0,0.00021643,2]
[362754311,1748429444672,-968.69,0.00021643,2]
[362754313,1748429444681,-1950.22,0.00021643,2]
[362754315,1748429444693,-430.0,0.00021643,2]
[362754317,1748429444704,-871.05,0.00021643,2]
[362754319,1748429444714,-511.7226076,0.00021643,2]
[362754321,1748429444724,-430.0,0.00021643,2]
[362754324,1748429444734,-714.71,0.00021643,2]
[362754326,1748429444744,-430.0,0.00021643,2]
[362754328,1748429444754,-430.0,0.00021643,2]
[362754330,1748429444764,-1202.58,0.00021643,2]
[362754331,1748429444774,-430.0,0.00021643,2]
[362754333,1748429444785,-2083.16,0.00021643,2]
[362754336,1748429444795,-3700.44,0.00021643,2]
[362754338,1748429444805,-430.0,0.00021643,2]
[362754339,1748429444814,-151.0,0.000217,4]
[362754340,1748429444823,-800.0,0.00021706,2]
[362754341,1748429444832,-800.0,0.00021707,2]
[362754342,1748429444841,-160.0,0.00021711,3]
[362754343,1748429444850,-800.0,0.00021721,2]
[362754344,1748429444860,-155.3651621,0.00021726,2]
[362754345,1748429444869,-386.36475266,0.00021766,2]
[362754346,1748429444878,-800.0,0.00021769,2]
[362754347,1748429444887,-800.0,0.00021787,2]
[362754348,1748429444896,-414.43355336,0.0002179,2]
[362754349,1748429444905,-4002.24426821,0.00021797,6]
[362754350,1748429444915,-3000.0,0.000218,2]
[362754351,1748429444924,-3000.0,0.0002181,2]
[362754352,1748429444933,-800.0,0.00021813,2]
[362754353,1748429444942,-3000.0,0.0002182,2]
[362754354,1748429444952,-3000.0,0.0002183,2]
[362754355,1748429444962,-3000.0,0.0002184,2]
[362754357,1748429444970,-400.95470551,0.00021842,2]
[362754359,1748429444980,-800.0,0.00021843,2]
[362754361,1748429444990,-3000.0,0.0002185,2]
[362754363,1748429444999,-7127.49481367,0.0002185,2]
[362754365,1748429445009,-2000.0,0.00021852,2]
[362754367,1748429445019,-5000.0,0.00021855,2]
[362754369,1748429445028,-800.0,0.00021859,2]
[362754371,1748429445037,-3000.0,0.0002186,2]
[362754373,1748429445046,-800.0,0.00021865,2]
[362754375,1748429445055,-3000.0,0.0002187,2]
[362754376,1748429445065,-800.0,0.00021873,2]
[362754379,1748429445075,-800.0,0.00021879,2]
[362754381,1748429445086,-3000.0,0.0002188,2]
[362754382,1748429445095,-3000.0,0.0002189,2]
[362754384,1748429445104,-800.0,0.00021899,2]
[362754386,1748429445114,-521.48426933,0.000219,2]
[362754388,1748429445124,-3000.0,0.000219,2]
[362754390,1748429445133,-2000.0,0.000219,2]
[362754392,1748429445143,-2252.92,0.000219,2]
[362754394,1748429445153,-3000.0,0.0002191,2]
[362754396,1748429445162,-15329.40749926,0.00021917,2]
[362754398,1748429445172,-200.0,0.00021917,2]
[362754400,1748429445182,-500.0,0.00021917,2]
[362754402,1748429445191,-430.0,0.00021917,2]
[362754404,1748429445200,-430.0,0.00021917,2]
[362754406,1748429445209,-430.0,0.00021917,2]
[362754408,1748429445219,-430.0,0.00021917,2]
[362754410,1748429445228,-353.75835913,0.00021917,2]
[362754412,1748429445237,-430.0,0.00021917,2]
[362754414,1748429445248,-934.26,0.00021917,2]
[362754416,1748429445258,-430.0,0.00021917,2]
[362754418,1748429445267,-430.0,0.00021917,2]
[362754420,1748429445278,-430.0,0.00021917,2]
[362754422,1748429445288,-529.79,0.00021917,2]
[362754424,1748429445298,-1954.49,0.00021917,2]
[362754426,1748429445307,-546.36,0.00021917,2]
[362754428,1748429445316,-430.0,0.00021917,2]
[362754430,1748429445326,-1524.92,0.00021917,2]
[362754432,1748429445335,-430.0,0.00021917,2]
[362754434,1748429445345,-433.36,0.00021917,2]
[362754436,1748429445354,-1280.95,0.00021917,2]
[362754438,1748429445363,-430.0,0.00021917,2]
[362754440,1748429445372,-1386.57,0.00021917,2]
[362754442,1748429445382,-430.0,0.00021917,2]
[362754444,1748429445392,-430.0,0.00021917,2]
[362754446,1748429445401,-582.77,0.00021917,2]
[362754447,1748429445411,-1250.79,0.00021917,2]
[362754449,1748429445420,-907.36,0.00021917,2]
[362754452,1748429445430,-430.0,0.00021917,2]
[362754453,1748429445439,-458.18,0.00021917,2]
[362754456,1748429445449,-430.0,0.00021917,2]
[362754457,1748429445459,-430.0,0.00021917,2]
[362754459,1748429445468,-430.0,0.00021917,2]
[362754461,1748429445478,-430.0,0.00021917,2]
[362754464,1748429445488,-430.0,0.00021917,2]
[362754466,1748429445498,-430.0,0.00021917,2]
[362754467,1748429445507,-430.0,0.00021917,2]
[362754470,1748429445516,-430.0,0.00021917,2]
[362754472,1748429445525,-154.86672191,0.00021917,2]
[362754474,1748429445534,-968.69,0.00021917,2]
[362754476,1748429445544,-1950.22,0.00021917,2]
[362754477,1748429445553,-430.0,0.00021917,2]
[362754479,1748429445562,-871.05,0.00021917,2]
[362754481,1748429445571,-430.0,0.00021917,2]
[362754483,1748429445581,-714.71,0.00021917,2]
[362754485,1748429445590,-430.0,0.00021917,2]
[362754487,1748429445600,-430.0,0.00021917,2]
[362754489,1748429445610,-1202.58,0.00021917,2]
[362754491,1748429445619,-203.20636921,0.00021917,2]
[362754493,1748429445627,-166.0,0.00021917,2]
[362754495,1748429445635,-166.0,0.00021917,2]
[362754497,1748429445645,-166.0,0.00021917,2]
[362754499,1748429445653,-166.0,0.00021917,2]
[362754501,1748429445663,-720.0,0.00021917,2]
[362754503,1748429445671,-166.0,0.00021917,2]
[362754505,1748429445680,-166.0,0.00021917,2]
[362754507,1748429445695,-720.0,0.00021917,2]
[362754508,1748429445704,-166.0,0.00021917,2]
[362754509,1748429445714,-166.0,0.00021917,2]
[362754510,1748429445723,-720.0,0.00021917,2]
[362754511,1748429445734,-166.0,0.00021917,2]
[362754512,1748429445743,-720.0,0.00021917,2]
[362754513,1748429445752,-166.0,0.00021917,2]
[362754514,1748429445762,-166.0,0.00021917,2]
[362754515,1748429445771,-720.0,0.00021917,2]
[362754516,1748429445781,-166.0,0.00021917,2]
[362754517,1748429445790,-166.0,0.00021917,2]
[362754518,1748429445800,-720.0,0.00021917,2]
[362754519,1748429445810,-166.0,0.00021917,2]
[362754520,1748429445820,-172.0,0.00021917,2]
[362754521,1748429445829,-720.0,0.00021917,2]
[362754522,1748429445839,-166.0,0.00021917,2]
[362754523,1748429445849,-430.0,0.00021917,2]
[362754524,1748429445858,-720.0,0.00021917,2]
[362754525,1748429445869,-166.0,0.00021917,2]
[362754526,1748429445878,-720.0,0.00021917,2]
[362754527,1748429445889,-153.0,0.00021917,2]
[362754528,1748429445899,-172.0,0.00021917,2]
[362754529,1748429445909,-720.0,0.00021917,2]
[362754530,1748429445918,-153.0,0.00021917,2]
[362754531,1748429445928,-720.0,0.00021917,2]
[362754532,1748429445938,-153.0,0.00021917,2]
[362754533,1748429445947,-720.0,0.00021917,2]
[362754534,1748429445957,-153.0,0.00021917,2]
[362754535,1748429445966,-2083.16,0.00021917,2]
[362754536,1748429445976,-153.0,0.00021917,2]
[362754537,1748429445986,-720.0,0.00021917,2]
[362754545,1748429446079,-153.0,0.00021917,2]
[362754547,1748429446090,-3700.44,0.00021917,2]
[362754549,1748429446100,-720.0,0.00021917,2]
[362754551,1748429446110,-200.26035242,0.00021917,2]
[362754553,1748429446120,-153.0,0.00021917,2]
[362754555,1748429446130,-720.0,0.00021917,2]
[362754557,1748429446139,-153.0,0.00021917,2]
[362754559,1748429446149,-720.0,0.00021917,2]
[362754561,1748429446158,-153.0,0.00021917,2]
[362754563,1748429446168,-720.0,0.00021917,2]
[362754565,1748429446178,-153.0,0.00021917,2]
[362754566,1748429446187,-720.0,0.00021917,2]
[362754567,1748429446198,-430.0,0.00021917,2]
[362754568,1748429446208,-170.0,0.00021918,2]
[362754569,1748429446218,-170.0,0.00021918,2]
[362754570,1748429446228,-170.0,0.00021918,2]
[362754571,1748429446238,-170.0,0.00021918,2]
[362754572,1748429446249,-170.0,0.00021918,2]
[362754573,1748429446258,-174.8040625,0.00021918,2]
[362754574,1748429446268,-3000.0,0.0002192,2]
[362754575,1748429446277,-3000.0,0.0002193,2]
[362754576,1748429446287,-3000.0,0.0002194,2]
[362754577,1748429446297,-1500.0,0.00021947,2]
[362754578,1748429446308,-1283.06253812,0.00021947,2]
[362754579,1748429446319,-96160.5518,0.0002195,14]
[362754580,1748429446329,-11749.6967,0.0002195,15]
[362754581,1748429446339,-3761.692,0.0002195,18]
[362754582,1748429446349,-56200.94857032,0.0002195,20]
[362754583,1748429446568,-154.52993123,0.00021917,2]
[362754584,1748429446578,-720.0,0.00021917,2]
[362754585,1748429446588,-889.75635558,0.0002195,20]
[362754589,1748429446814,-0.00256273,0.00019114,2]
[362754590,1748429446853,-254.45860606,0.00019114,2]
[362754598,1748430150400,191.205069,0.00013699,2]
[362754611,1748430631993,-180.0,0.00016438,3]
[362754612,1748430632004,-524.74836553,0.00017172,2]
[362754613,1748430632016,-300.0,0.00017702,2]
[362754614,1748430632026,-1200.0,0.00017702,2]
[362754615,1748430632039,-24900.0,0.00017703,2]
[362754616,1748430632050,-1111.9212983,0.0001789,2]
[362754617,1748430632062,-174.9243093,0.00017948,2]
[362754618,1748430632074,-338.46250373,0.00018003,2]
[362754619,1748430632088,-188.931476,0.00018086,2]
[362754620,1748430632105,-500.0,0.00018557,2]
[362754621,1748430632118,-248.62280926,0.00018557,2]
[362754622,1748430632131,-500.0,0.00018557,2]
[362754623,1748430632141,-500.0,0.00018557,2]
[362754624,1748430632154,-553.19150822,0.00018557,2]
[362754625,1748430632164,-500.0,0.00018557,2]
[362754626,1748430632174,-13564.83574992,0.00018558,2]
[362754627,1748430632183,-5000.0,0.00018559,2]
[362754628,1748430632194,-152.0,0.00018721,2]
[362754629,1748430632203,-405.0,0.0001884,2]
[362754630,1748430632213,-200.72377031,0.00018848,2]
[362754631,1748430632223,-295.93670821,0.000189,2]
[362754632,1748430632234,-2112.44528587,0.000189,2]
[362754633,1748430632244,-300.0,0.00018996,2]
[362754634,1748430632254,-10849.14705313,0.00019,2]
[362754635,1748430632264,-961.0,0.00019061,2]
[362754636,1748430632274,-938.97508872,0.00019067,2]
[362754637,1748430632283,-2112.44528585,0.00019107,2]
[362754638,1748430632293,-160.0,0.0001911,2]
[362754639,1748430632303,-160.0,0.00019114,2]
[362754640,1748430632312,-229.229959,0.00019114,2]
[362754641,1748430632322,-842.5625,0.00019114,2]
[362754642,1748430632332,-160.0,0.00019114,2]
[362754643,1748430632342,-160.0,0.00019114,2]
[362754644,1748430632351,-12658.7678854,0.00019114,2]
[362754645,1748430632361,-423.24161968,0.00019114,2]
[362754646,1748430632370,-160.0,0.00019114,2]
[362754647,1748430632380,-158.651215,0.00019178,2]
[362754648,1748430632389,-151.0,0.00019178,2]
[362754649,1748430632400,-430.0,0.00019178,2]
[362754650,1748430632409,-430.0,0.00019178,2]
[362754651,1748430632419,-1395.81,0.00019178,2]
[362754652,1748430632429,-430.0,0.00019178,2]
[362754653,1748430632439,-430.0,0.00019178,2]
[362754654,1748430632448,-430.0,0.00019178,2]
[362754655,1748430632458,-2004.4,0.00019178,2]
[362754656,1748430632468,-430.0,0.00019178,2]
[362754657,1748430632477,-430.0,0.00019178,2]
[362754658,1748430632487,-825.99,0.00019178,2]
[362754659,1748430632497,-746.89,0.00019178,2]
[362754660,1748430632506,-693.85,0.00019178,2]
[362754661,1748430632515,-430.0,0.00019178,2]
[362754662,1748430632525,-430.0,0.00019178,2]
[362754663,1748430632534,-1058.68,0.00019178,2]
[362754664,1748430632544,-491.49,0.00019178,2]
[362754665,1748430632553,-1115.95,0.00019178,2]
[362754666,1748430632563,-430.0,0.00019178,2]
[362754667,1748430632572,-430.0,0.00019178,2]
[362754668,1748430632581,-430.0,0.00019178,2]
[362754669,1748430632591,-430.0,0.00019178,2]
[362754670,1748430632600,-430.0,0.00019178,2]
[362754671,1748430632609,-677.51,0.00019178,2]
[362754672,1748430632619,-430.0,0.00019178,2]
[362754673,1748430632628,-430.0,0.00019178,2]
[362754674,1748430632637,-430.0,0.00019178,2]
[362754675,1748430632646,-430.0,0.00019178,2]
[362754676,1748430632655,-430.0,0.00019178,2]
[362754677,1748430632665,-430.0,0.00019178,2]
[362754678,1748430632675,-430.0,0.00019178,2]
[362754679,1748430632684,-524.7,0.00019178,2]
[362754680,1748430632694,-430.0,0.00019178,2]
[362754681,1748430632703,-430.0,0.00019178,2]
[362754682,1748430632713,-207.29,0.00019178,2]
[362754683,1748430632723,-430.0,0.00019178,2]
[362754684,1748430632732,-1056.37,0.00019178,2]
[362754685,1748430632741,-471.82,0.00019178,2]
[362754686,1748430632750,-922.6,0.00019178,2]
[362754687,1748430632760,-1128.38,0.00019178,2]
[362754688,1748430632769,-264.99764765,0.00019178,2]
[362754689,1748430632778,-430.0,0.00019178,2]
[362754690,1748430632788,-430.0,0.00019178,2]
[362754691,1748430632797,-430.0,0.00019178,2]
[362754692,1748430632807,-430.0,0.00019178,2]
[362754693,1748430632817,-151.0,0.00019178,2]
[362754694,1748430632827,-185.085864,0.00019178,2]
[362754695,1748430632836,-156.587,0.00019233,2]
[362754696,1748430632846,-732.99212623,0.00019243,2]
[362754697,1748430632856,-162.380719,0.00019288,2]
[362754698,1748430632866,-207.4,0.00019307,2]
[362754699,1748430632875,-153.88296257,0.00019307,2]
[362754700,1748430632884,-5000.0,0.00019307,2]
[362754701,1748430632894,-2112.44528585,0.00019314,2]
[362754702,1748430632903,-420.0,0.00019321,2]
[362754703,1748430632913,-168.3888056,0.00019343,2]
[362754704,1748430632922,-174.61919141,0.00019398,2]
[362754705,1748430632932,-480.0,0.00019416,2]
[362754706,1748430632941,-151.0,0.00019452,2]
[362754707,1748430632951,-430.0,0.00019452,2]
[362754708,1748430632961,-430.0,0.00019452,2]
[362754709,1748430632971,-1395.81,0.00019452,2]
[362754710,1748430632980,-430.0,0.00019452,2]
[362754711,1748430632989,-430.0,0.00019452,2]
[362754712,1748430632999,-430.0,0.00019452,2]
[362754713,1748430633008,-2004.4,0.00019452,2]
[362754714,1748430633018,-430.0,0.00019452,2]
[362754715,1748430633028,-430.0,0.00019452,2]
[362754716,1748430633038,-825.99,0.00019452,2]
[362754717,1748430633048,-746.89,0.00019452,2]
[362754718,1748430633058,-693.85,0.00019452,2]
[362754719,1748430633068,-430.0,0.00019452,2]
[362754720,1748430633085,-214.72840503,0.00019452,2]
[362754721,1748430633095,-1058.68,0.00019452,2]
[362754722,1748430633106,-491.49,0.00019452,2]
[362754723,1748430633121,-1115.95,0.00019452,2]
[362754724,1748430633131,-430.0,0.00019452,2]
[362754725,1748430633142,-430.0,0.00019452,2]
[362754726,1748430633152,-430.0,0.00019452,2]
[362754727,1748430633163,-430.0,0.00019452,2]
[362754728,1748430633173,-430.0,0.00019452,2]
[362754729,1748430633183,-677.51,0.00019452,2]
[362754730,1748430633192,-430.0,0.00019452,2]
[362754731,1748430633203,-430.0,0.00019452,2]
[362754732,1748430633214,-430.0,0.00019452,2]
[362754733,1748430633224,-430.0,0.00019452,2]
[362754734,1748430633234,-430.0,0.00019452,2]
[362754735,1748430633246,-430.0,0.00019452,2]
[362754736,1748430633256,-430.0,0.00019452,2]
[362754737,1748430633267,-524.7,0.00019452,2]
[362754738,1748430633277,-430.0,0.00019452,2]
[362754739,1748430633288,-430.0,0.00019452,2]
[362754740,1748430633298,-430.0,0.00019452,2]
[362754741,1748430633309,-1056.37,0.00019452,2]
[362754742,1748430633320,-471.82,0.00019452,2]
[362754743,1748430633332,-922.6,0.00019452,2]
[362754744,1748430633343,-1128.38,0.00019452,2]
[362754745,1748430633354,-430.0,0.00019452,2]
[362754746,1748430633364,-430.0,0.00019452,2]
[362754747,1748430633375,-430.0,0.00019452,2]
[362754748,1748430633385,-430.0,0.00019452,2]
[362754749,1748430633395,-181.08010149,0.00019453,2]
[362754750,1748430633405,-3534.87,0.00019489,2]
[362754751,1748430633415,-256.89895171,0.00019491,2]
[362754752,1748430633426,-187.78006525,0.00019508,2]
[362754753,1748430633437,-2112.44528585,0.00019521,2]
[362754754,1748430633448,-194.72792766,0.00019563,2]
[362754755,1748430633459,-201.93286099,0.00019618,2]
[362754756,1748430633470,-209.40437684,0.00019673,2]
[362754757,1748430633480,-178.75,0.00019716,3]
[362754758,1748430633491,-536.29,0.00019716,3]
[362754759,1748430633501,-156.079,0.00019724,2]
[362754760,1748430633512,-430.0,0.00019726,2]
[362754761,1748430633522,-430.0,0.00019726,2]
[362754762,1748430633534,-1395.81,0.00019726,2]
[362754763,1748430633545,-430.0,0.00019726,2]
[362754764,1748430633555,-430.0,0.00019726,2]
[362754765,1748430633565,-430.0,0.00019726,2]
[362754766,1748430633576,-2004.4,0.00019726,2]
[362754767,1748430633586,-430.0,0.00019726,2]
[362754768,1748430633596,-430.0,0.00019726,2]
[362754769,1748430633606,-825.99,0.00019726,2]
[362754770,1748430633617,-746.89,0.00019726,2]
[362754771,1748430633626,-693.85,0.00019726,2]
[362754772,1748430633636,-430.0,0.00019726,2]
[362754773,1748430633646,-1058.68,0.00019726,2]
[362754774,1748430633656,-491.49,0.00019726,2]
[362754775,1748430633666,-1115.95,0.00019726,2]
[362754776,1748430633676,-430.0,0.00019726,2]
[362754777,1748430633685,-430.0,0.00019726,2]
[362754778,1748430633694,-430.0,0.00019726,2]
[362754779,1748430633704,-430.0,0.00019726,2]
[362754780,1748430633714,-430.0,0.00019726,2]
[362754781,1748430633723,-677.51,0.00019726,2]
[362754782,1748430633733,-442.99706344,0.00019726,2]
[362754783,1748430633742,-430.0,0.00019726,2]
[362754784,1748430633752,-430.0,0.00019726,2]
[362754785,1748430633762,-430.0,0.00019726,2]
[362754786,1748430633772,-430.0,0.00019726,2]
[362754787,1748430633781,-430.0,0.00019726,2]
[362754788,1748430633791,-430.0,0.00019726,2]
[362754789,1748430633801,-524.7,0.00019726,2]
[362754790,1748430633811,-430.0,0.00019726,2]
[362754791,1748430633821,-430.0,0.00019726,2]
[362754792,1748430633831,-430.0,0.00019726,2]
[362754793,1748430633841,-1056.37,0.00019726,2]
[362754794,1748430633851,-471.82,0.00019726,2]
[362754795,1748430633861,-922.6,0.00019726,2]
[362754796,1748430633871,-1128.38,0.00019726,2]
[362754797,1748430633881,-430.0,0.00019726,2]
[362754798,1748430633890,-430.0,0.00019726,2]
[362754799,1748430633901,-430.0,0.00019726,2]
[362754800,1748430633910,-430.0,0.00019726,2]
[362754801,1748430633920,-2112.44528585,0.00019728,2]
[362754802,1748430633929,-217.15233878,0.00019728,2]
[362754803,1748430633939,-1168.66614987,0.00019762,2]
[362754804,1748430633949,-500.0,0.00019765,2]
[362754805,1748430633959,-225.18697532,0.00019783,2]
[362754806,1748430633970,-500.0,0.00019809,2]
[362754807,1748430633979,-500.0,0.00019809,2]
[362754808,1748430633989,-500.0,0.00019809,2]
[362754809,1748430633999,-500.87155734,0.00019809,2]
[362754810,1748430634009,-505.68062956,0.00019809,2]
[362754811,1748430634018,-500.0,0.00019825,2]
[362754812,1748430634028,-500.0,0.00019825,2]
[362754813,1748430634037,-500.0,0.00019826,2]
[362754814,1748430634048,-500.0,0.00019826,2]
[362754815,1748430634058,-500.0,0.00019826,2]
[362754816,1748430634068,-160.09918572,0.00019826,2]
[362754817,1748430634081,-599.99774836,0.00019826,2]
[362754818,1748430634092,-500.0,0.00019826,2]
[362754819,1748430634101,-500.0,0.00019826,2]
[362754820,1748430634111,-500.0,0.00019826,2]
[362754821,1748430634120,-501.99831661,0.00019833,2]
[362754822,1748430634131,-500.0,0.00019833,2]
[362754823,1748430634140,-500.0,0.00019833,2]
[362754824,1748430634150,-500.0,0.00019833,2]
[362754825,1748430634160,-500.0,0.00019833,2]
[362754826,1748430634169,-460.7295299,0.00019833,2]
[362754827,1748430634180,-500.0,0.00019833,2]
[362754828,1748430634190,-502.61462071,0.00019833,2]
[362754829,1748430634199,-503.63052869,0.00019833,2]
[362754830,1748430634209,-500.0,0.00019833,2]
[362754831,1748430634218,-500.0,0.00019833,2]
[362754832,1748430634228,-500.0,0.00019836,2]
[362754833,1748430634238,-160.09859853,0.00019836,2]
[362754834,1748430634249,-502.4204444,0.00019836,2]
[362754835,1748430634259,-500.0,0.00019836,2]
[362754836,1748430634269,-500.0,0.00019836,2]
[362754837,1748430634279,-500.0,0.00019836,2]
[362754838,1748430634289,-500.0,0.00019836,2]
[362754839,1748430634298,-500.0,0.00019836,2]
[362754840,1748430634308,-233.51889341,0.00019838,2]
[362754841,1748430634318,-732.99212623,0.00019852,2]
[362754842,1748430634328,-5000.0,0.00019855,2]
[362754843,1748430634337,-500.0,0.00019861,2]
[362754844,1748430634347,-500.0,0.00019861,2]
[362754845,1748430634357,-500.0,0.00019861,2]
[362754846,1748430634367,-500.0,0.00019861,2]
[362754847,1748430634377,-500.0,0.00019863,2]
[362754848,1748430634387,-500.0,0.00019863,2]
[362754849,1748430634396,-899.999999,0.0001988,2]
[362754850,1748430634406,-242.15909246,0.00019893,2]
[362754851,1748430634416,-520.03197911,0.00019918,2]
[362754852,1748430634425,-2112.44528585,0.00019934,2]
[362754853,1748430634435,-500.0,0.00019935,2]
[362754854,1748430634444,-251.11897888,0.00019948,2]
[362754855,1748430634454,-715.05066997,0.00019962,2]
[362754856,1748430634463,-500.0,0.0001997,2]
[362754857,1748430634473,-500.0,0.0001997,2]
[362754858,1748430634483,-430.0,0.0002,2]
[362754859,1748430634492,-310.54,0.0002,2]
[362754860,1748430634502,-1138.71560304,0.0002,2]
[362754861,1748430634517,-257.09439696,0.0002,2]
[362754862,1748430634527,-430.0,0.0002,2]
[362754863,1748430634537,-430.0,0.0002,2]
[362754864,1748430634547,-156.78732905,0.0002,2]
[362754865,1748430634556,-157.97,0.0002,2]
[362754866,1748430634566,-430.0,0.0002,2]
[362754867,1748430634575,-151.78445359,0.0002,2]
[362754868,1748430634585,-2004.4,0.0002,2]
[362754869,1748430634594,-430.0,0.0002,2]
[362754870,1748430634604,-430.0,0.0002,2]
[362754871,1748430634613,-825.99,0.0002,2]
[362754872,1748430634623,-746.89,0.0002,2]
[362754873,1748430634632,-693.85,0.0002,2]
[362754874,1748430634641,-430.0,0.0002,2]
[362754875,1748430634652,-1058.68,0.0002,2]
[362754876,1748430634662,-491.49,0.0002,2]
[362754877,1748430634671,-1115.95,0.0002,2]
[362754878,1748430634680,-430.0,0.0002,2]
[362754879,1748430634690,-430.0,0.0002,2]
[362754880,1748430634798,-430.0,0.0002,2]
[362754881,1748430634808,-430.0,0.0002,2]
[362754882,1748430634818,-430.0,0.0002,2]
[362754883,1748430634828,-677.51,0.0002,2]
[362754884,1748430634838,-430.0,0.0002,2]
[362754885,1748430634847,-430.0,0.0002,2]
[362754886,1748430634857,-430.0,0.0002,2]
[362754887,1748430634867,-430.0,0.0002,2]
[362754888,1748430634876,-430.0,0.0002,2]
[362754889,1748430634886,-430.0,0.0002,2]
[362754890,1748430634895,-524.7,0.0002,2]
[362754891,1748430634906,-430.0,0.0002,2]
[362754892,1748430634921,-430.0,0.0002,2]
[362754893,1748430634931,-312.37460912,0.0002,2]
[362754894,1748430634941,-1056.37,0.0002,2]
[362754895,1748430634951,-471.82,0.0002,2]
[362754896,1748430634961,-922.6,0.0002,2]
[362754897,1748430634970,-1128.38,0.0002,2]
[362754898,1748430634981,-430.0,0.0002,2]
[362754899,1748430634990,-430.0,0.0002,2]
[362754900,1748430634999,-430.0,0.0002,2]
[362754901,1748430635009,-430.0,0.0002,2]
[362754902,1748430635019,-260.4103811,0.00020003,2]
[362754903,1748430635028,-270.0455652,0.00020058,2]
[362754904,1748430635040,-1200.0,0.00020068,2]
[362754905,1748430635050,-500.0,0.000201,2]
[362754906,1748430635060,-280.03725112,0.00020113,2]
[362754907,1748430635071,-2112.44528585,0.00020141,2]
[362754908,1748430635083,-439.38895447,0.00020168,2]
[362754909,1748430635093,-191.205069,0.00020187,2]
[362754910,1748430635103,-430.0,0.00020273,2]
[362754911,1748430635112,-1395.81,0.00020273,2]
[362754912,1748430635122,-430.0,0.00020273,2]
[362754913,1748430635132,-430.0,0.00020273,2]
[362754914,1748430635142,-430.0,0.00020273,2]
[362754915,1748430635151,-2004.4,0.00020273,2]
[362754916,1748430635163,-340.97189483,0.00020273,2]
[362754917,1748430635173,-430.0,0.00020273,2]
[362754918,1748430635183,-825.99,0.00020273,2]
[362754919,1748430635192,-746.89,0.00020273,2]
[362754920,1748430635201,-693.85,0.00020273,2]
[362754921,1748430635210,-430.0,0.00020273,2]
[362754922,1748430635220,-1058.68,0.00020273,2]
[362754923,1748430635229,-491.49,0.00020273,2]
[362754924,1748430635238,-1115.95,0.00020273,2]
[362754925,1748430635248,-384.92,0.00020273,2]
[362754926,1748430635258,-430.0,0.00020273,2]
[362754927,1748430635267,-430.0,0.00020273,2]
[362754928,1748430635277,-430.0,0.00020273,2]
[362754929,1748430635287,-430.0,0.00020273,2]
[362754930,1748430635296,-677.51,0.00020273,2]
[362754931,1748430635306,-430.0,0.00020273,2]
[362754932,1748430635316,-430.0,0.00020273,2]
[362754933,1748430635325,-430.0,0.00020273,2]
[362754934,1748430635334,-430.0,0.00020273,2]
[362754935,1748430635344,-430.0,0.00020273,2]
[362754936,1748430635354,-430.0,0.00020273,2]